[Event "Queens Festival Europe 2022"]
[Site "Tornelo"]
[Date "2022.06.19"]
[Round "6.10"]
[White "Farzaliyeva, Shams"]
[Black "Bruntse, Caroline Lindegaard"]
[Result "1-0"]
[ECO "D60"]
[WhiteElo "1219"]
[BlackElo "1503"]
[Annotator "NA RC"]
[PlyCount "143"]
[EventDate "2022.06.19"]
[EventType "swiss"]
[EventCountry "NET"]
[SourceTitle "playchess.com"]
[Source "ChessBase"]
[SourceQuality "1"]
[TimeControl "180+2"]

1. d4 {[%emt 0:00:02]} d5 {[%emt 0:00:05]} 2. c4 {[%emt 0:00:04]} e6 {[%emt 0:00:03]} 3. Nc3 {[%emt 0:00:02]} c5 {[%emt 0:00:03]} 4. Nf3 {[%emt 0:00:06]} Nf6 {[%emt 0:00:03]} 5. Bg5 {[%emt 0:00:02]} Be7 {[%emt 0:00:16]} 6. e3 {[%emt 0:00:03]} O-O {[%emt 0:00:05]} 7. Bd3 {[%emt 0:00:11]} Nbd7 {[%emt 0:00:06]} 8. O-O {[%emt 0:00:02]} h6 {[%emt 0:00:03]} 9. Bh4 {[%emt 0:00:03]} Rb8 {[%emt 0:00:12]} 10. Qe2 {[%emt 0:00:09]} b6 {[%emt 0:00:05]} 11. Rfd1 {[%emt 0:00:04]} Bb7 {[%emt 0:00:06]} 12. Bg3 {[%emt 0:00:09]} Rc8 {[%emt 0:00:05]} 13. Nb5 {[%emt 0:00:02]} a6 {[%emt 0:00:18]} 14. Nd6 {[%emt 0:00:20]} Bxd6 {[%emt 0:00:18]} 15. Bxd6 {[%emt 0:00:03]} Re8 {[%emt 0:00:03]} 16. cxd5 {[%emt 0:00:02]} Nxd5 {[%emt 0:00:11]} 17. Bxa6 {[%emt 0:00:23]} Bxa6 {[%emt 0:00:21]} 18. Qxa6 {[%emt 0:00:04]} N7f6 {[%emt 0:00:06]} 19. dxc5 {[%emt 0:00:08]} bxc5 {[%emt 0:00:11]} 20. Be5 {[%emt 0:00:18]} Ra8 {[%emt 0:00:25]} 21. Qc4 {[%emt 0:00:11]} Qa5 {[%emt 0:00:15]} 22. e4 {[%emt 0:00:17]} Nb6 {[%emt 0:00:07]} 23. Qc3 {[%emt 0:00:04]} Qxc3 {[%emt 0:00:04]} 24. Bxc3 {[%emt 0:00:03]} Nxe4 {[%emt 0:00:07]} 25. Be5 {[%emt 0:00:13]} Nc4 {[%emt 0:00:05]} 26. b3 {[%emt 0:00:01]} Nxe5 {[%emt 0:00:02]} 27. Nxe5 {[%emt 0:00:02]} Nc3 {[%emt 0:00:02]} 28. Rd2 {[%emt 0:00:03]} Nb5 {[%emt 0:00:03]} 29. a4 {[%emt 0:00:05]} Nc7 {[%emt 0:00:03]} 30. Rc1 {[%emt 0:00:05]} Na6 {[%emt 0:00:02]} 31. Nd3 {[%emt 0:00:05]} Rec8 {[%emt 0:00:02]} 32. Rdc2 {[%emt 0:00:03]} Rab8 {[%emt 0:00:01]} 33. Nxc5 {[%emt 0:00:02]} Nxc5 {[%emt 0:00:02]} 34. Rxc5 {[%emt 0:00:02]} Rxc5 {[%emt 0:00:01]} 35. Rxc5 {[%emt 0:00:01]} Rxb3 {[%emt 0:00:02]} 36. h3 {[%emt 0:00:03]} Ra3 {[%emt 0:00:02]} 37. Ra5 {[%emt 0:00:05]} Kf8 {[%emt 0:00:02]} 38. Ra7 {[%emt 0:00:02]} Ke8 {[%emt 0:00:03]} 39. f3 {[%emt 0:00:04]} g6 {[%emt 0:00:02]} 40. Kf2 {[%emt 0:00:03]} Rd3 {[%emt 0:00:01]} 41. g4 {[%emt 0:00:03]} Rd7 {[%emt 0:00:02]} 42. Rxd7 {[%emt 0:00:22]} Kxd7 {[%emt 0:00:02]} 43. Ke3 {[%emt 0:00:01]} Kc6 {[%emt 0:00:01]} 44. Kd4 {[%emt 0:00:01]} Kb6 {[%emt 0:00:02]} 45. Ke5 {[%emt 0:00:03]} Ka5 {[%emt 0:00:03]} 46. Kf6 {[%emt 0:00:01]} Kxa4 {[%emt 0:00:01]} 47. Kxf7 {[%emt 0:00:01]} e5 {[%emt 0:00:02]} 48. Kxg6 {[%emt 0:00:01]} Kb4 {[%emt 0:00:01]} 49. Kxh6 {[%emt 0:00:02]} Kc4 {[%emt 0:00:02]} 50. g5 {[%emt 0:00:01]} Kd4 {[%emt 0:00:01]} 51. g6 {[%emt 0:00:01]} Ke3 {[%emt 0:00:02]} 52. g7 {[%emt 0:00:01]} Kxf3 {[%emt 0:00:01]} 53. g8=Q {[%emt 0:00:02]} e4 {[%emt 0:00:02]} 54. Kg5 {[%emt 0:00:05]} e3 {[%emt 0:00:02]} 55. Qe6 {[%emt 0:00:02]} e2 {[%emt 0:00:03]} 56. h4 {[%emt 0:00:01]} Kf2 {[%emt 0:00:02]} 57. Qxe2+ {[%emt 0:00:02]} Kxe2 {[%emt 0:00:02]} 58. h5 {[%emt 0:00:01]} Ke3 {[%emt 0:00:01]} 59. h6 {[%emt 0:00:01]} Ke4 {[%emt 0:00:01]} 60. h7 {[%emt 0:00:01]} Ke5 {[%emt 0:00:02]} 61. h8=Q+ {[%emt 0:00:01]} Ke6 {[%emt 0:00:01]} 62. Qf6+ {[%emt 0:00:02]} Kd5 {[%emt 0:00:03]} 63. Kf4 {[%emt 0:00:03]} Kc4 {[%emt 0:00:03]} 64. Qd6 {[%emt 0:00:02]} Kc3 {[%emt 0:00:02]} 65. Ke4 {[%emt 0:00:02]} Kc2 {[%emt 0:00:02]} 66. Ke3 {[%emt 0:00:01]} Kc1 {[%emt 0:00:02]} 67. Ke2 {[%emt 0:00:01]} Kc2 {[%emt 0:00:02]} 68. Qc5+ {[%emt 0:00:02]} Kb1 {[%emt 0:00:02]} 69. Kd2 {[%emt 0:00:08]} Kb2 {[%emt 0:00:02]} 70. Qb5+ {[%emt 0:00:03]} Ka1 {[%emt 0:00:02]} 71. Kc2 {[%emt 0:00:03]} Ka2 {[%emt 0:00:02]} 72. Qb2# {[%emt 0:00:01]} 1-0

[Event "Queens Festival Europe 2022"]
[Site "Tornelo"]
[Date "2022.06.19"]
[Round "6.12"]
[White "Jithendra, Raina"]
[Black "Jafarova, Aysel"]
[Result "0-1"]
[ECO "B02"]
[WhiteElo "1306"]
[BlackElo "1481"]
[Annotator "NA RC"]
[PlyCount "80"]
[EventDate "2022.06.19"]
[EventType "swiss"]
[EventCountry "NET"]
[SourceTitle "playchess.com"]
[Source "ChessBase"]
[SourceQuality "1"]
[TimeControl "180+2"]

1. e4 {[%emt 0:00:02]} d5 {[%emt 0:00:04]} 2. exd5 {[%emt 0:00:04]} Nf6 {[%emt 0:00:01]} 3. Nc3 {[%emt 0:00:03]} Nxd5 {[%emt 0:00:01]} 4. Nf3 {[%emt 0:00:03]} g6 {[%emt 0:00:02]} 5. d4 {[%emt 0:00:10]} Bg7 {[%emt 0:00:02]} 6. Be3 {[%emt 0:00:16]} O-O {[%emt 0:00:02]} 7. Bc4 {[%emt 0:00:06]} c6 {[%emt 0:00:02]} 8. Nxd5 {[%emt 0:00:03]} cxd5 {[%emt 0:00:02]} 9. Bb3 {[%emt 0:00:02]} Bg4 {[%emt 0:00:06]} 10. h3 {[%emt 0:00:02]} Bxf3 {[%emt 0:00:01]} 11. Qxf3 {[%emt 0:00:01]} e6 {[%emt 0:00:01]} 12. O-O {[%emt 0:00:02]} Nc6 {[%emt 0:00:02]} 13. Rfd1 {[%emt 0:00:06]} a5 {[%emt 0:00:03]} 14. c3 {[%emt 0:00:11]} a4 {[%emt 0:00:04]} 15. Bc2 {[%emt 0:00:03]} b6 {[%emt 0:00:16]} 16. b3 {[%emt 0:00:03]} axb3 {[%emt 0:00:16]} 17. axb3 {[%emt 0:00:06]} Qc7 {[%emt 0:00:09]} 18. Bf4 {[%emt 0:00:08]} Qb7 {[%emt 0:00:03]} 19. Qe3 {[%emt 0:00:10]} Rxa1 {[%emt 0:00:07]} 20. Rxa1 {[%emt 0:00:02]} Ra8 {[%emt 0:00:02]} 21. Rxa8+ {[%emt 0:00:03]} Qxa8 {[%emt 0:00:01]} 22. Bh6 {[%emt 0:00:02]} Qa1+ {[%emt 0:00:06]} 23. Kh2 {[%emt 0:00:03]} Bxh6 {[%emt 0:00:04]} 24. Qxh6 {[%emt 0:00:02]} Qxc3 {[%emt 0:00:01]} 25. Bd1 {[%emt 0:00:11]} Qxd4 {[%emt 0:00:05]} 26. Qc1 {[%emt 0:00:04]} Na5 {[%emt 0:00:10]} 27. Qc8+ {[%emt 0:00:03]} Kg7 {[%emt 0:00:02]} 28. Qc7 {[%emt 0:00:26]} Qxd1 {[%emt 0:00:06]} 29. Qxb6 {[%emt 0:00:03]} Qd2 {[%emt 0:00:06]} 30. b4 {[%emt 0:00:05]} Nc4 {[%emt 0:00:03]} 31. Qc5 {[%emt 0:00:06]} Qf4+ {[%emt 0:00:06]} 32. Kg1 {[%emt 0:00:06]} Qc1+ {[%emt 0:00:10]} 33. Kh2 {[%emt 0:00:05]} Qd2 {[%emt 0:00:02]} 34. f3 {[%emt 0:00:08]} Ne3 {[%emt 0:00:05]} 35. Kg3 {[%emt 0:00:17]} Qxg2+ {[%emt 0:00:03]} 36. Kf4 {[%emt 0:00:03]} Nf5 {[%emt 0:00:09]} 37. Qc3+ {[%emt 0:00:05]} Kh6 {[%emt 0:00:02]} 38. Ke5 {[%emt 0:00:10]} Qg3+ {[%emt 0:00:19]} 39. Kf6 {[%emt 0:00:22]} Qg5+ {[%emt 0:00:02]} 40. Ke5 {[%emt 0:00:07]} Ne7+ {[%emt 0:00:06]} 0-1

[Event "Queens Festival Europe 2022"]
[Site "Tornelo"]
[Date "2022.06.19"]
[Round "6.16"]
[White "Patel, Diah Dipal"]
[Black "Ismayilova, Salbinaz"]
[Result "0-1"]
[ECO "C45"]
[WhiteElo "1313"]
[BlackElo "1090"]
[Annotator "NA RC"]
[PlyCount "110"]
[EventDate "2022.06.19"]
[EventType "swiss"]
[EventCountry "NET"]
[SourceTitle "playchess.com"]
[Source "ChessBase"]
[SourceQuality "1"]
[TimeControl "180+2"]

1. e4 {[%emt 0:00:02]} e5 {[%emt 0:00:05]} 2. Nf3 {[%emt 0:00:02]} Nc6 {[%emt 0:00:03]} 3. Nc3 {[%emt 0:00:02]} Nf6 {[%emt 0:00:05]} 4. d4 {[%emt 0:00:02]} exd4 {[%emt 0:00:02]} 5. Nxd4 {[%emt 0:00:03]} Nxd4 {[%emt 0:00:07]} 6. Qxd4 {[%emt 0:00:02]} d6 {[%emt 0:00:02]} 7. Bc4 {[%emt 0:00:03]} Be7 {[%emt 0:00:02]} 8. Bg5 {[%emt 0:00:02]} O-O {[%emt 0:00:03]} 9. O-O-O {[%emt 0:00:02]} Be6 {[%emt 0:00:06]} 10. e5 {[%emt 0:00:12]} Nd7 {[%emt 0:00:17]} 11. exd6 {[%emt 0:00:06]} cxd6 {[%emt 0:00:06]} 12. Bxe7 {[%emt 0:00:04]} Qxe7 {[%emt 0:00:02]} 13. Rde1 {[%emt 0:00:07]} Ne5 {[%emt 0:00:10]} 14. f4 {[%emt 0:00:08]} Nxc4 {[%emt 0:00:06]} 15. Qxc4 {[%emt 0:00:03]} Bxc4 {[%emt 0:00:20]} 16. Rxe7 {[%emt 0:00:03]} Rab8 {[%emt 0:00:03]} 17. h4 {[%emt 0:00:03]} Be6 {[%emt 0:00:04]} 18. Rf1 {[%emt 0:00:17]} Rfe8 {[%emt 0:00:04]} 19. Rc7 {[%emt 0:00:12]} Rec8 {[%emt 0:00:09]} 20. Re7 {[%emt 0:00:04]} Re8 {[%emt 0:00:05]} 21. Rc7 {[%emt 0:00:01]} Rec8 {[%emt 0:00:05]} 22. Rxc8+ {[%emt 0:00:02]} Rxc8 {[%emt 0:00:02]} 23. f5 {[%emt 0:00:02]} Bc4 {[%emt 0:00:03]} 24. Rf4 {[%emt 0:00:07]} h6 {[%emt 0:00:04]} 25. g4 {[%emt 0:00:04]} Ba6 {[%emt 0:00:05]} 26. g5 {[%emt 0:00:04]} hxg5 {[%emt 0:00:02]} 27. hxg5 {[%emt 0:00:02]} b6 {[%emt 0:00:05]} 28. Nd5 {[%emt 0:00:02]} Re8 {[%emt 0:00:09]} 29. f6 {[%emt 0:00:16]} Bb7 {[%emt 0:00:07]} 30. Ne7+ {[%emt 0:00:12]} Kf8 {[%emt 0:00:04]} 31. Rh4 {[%emt 0:00:17]} Rxe7 {[%emt 0:00:14]} 32. fxe7+ {[%emt 0:00:03]} Kxe7 {[%emt 0:00:02]} 33. Rh7 {[%emt 0:00:03]} g6 {[%emt 0:00:01]} 34. a3 {[%emt 0:00:07]} Bd5 {[%emt 0:00:03]} 35. Rh4 {[%emt 0:00:06]} Ke6 {[%emt 0:00:02]} 36. b4 {[%emt 0:00:07]} Kf5 {[%emt 0:00:03]} 37. a4 {[%emt 0:00:09]} Kxg5 {[%emt 0:00:03]} 38. Rd4 {[%emt 0:00:02]} Bc6 {[%emt 0:00:09]} 39. b5 {[%emt 0:00:03]} Bb7 {[%emt 0:00:09]} 40. Rxd6 {[%emt 0:00:02]} f5 {[%emt 0:00:04]} 41. Rd7 {[%emt 0:00:04]} Be4 {[%emt 0:00:04]} 42. Re7 {[%emt 0:00:05]} Bd5 {[%emt 0:00:07]} 43. Rxa7 {[%emt 0:00:18]} f4 {[%emt 0:00:02]} 44. Re7 {[%emt 0:00:02]} f3 {[%emt 0:00:04]} 45. Re1 {[%emt 0:00:03]} Kg4 {[%emt 0:00:08]} 46. Kd2 {[%emt 0:00:02]} Bc4 {[%emt 0:00:05]} 47. Re4+ {[%emt 0:00:08]} Kg3 {[%emt 0:00:04]} 48. Ke3 {[%emt 0:00:17]} Bd5 {[%emt 0:00:06]} 49. Rf4 {[%emt 0:00:03]} g5 {[%emt 0:00:05]} 50. Rf8 {[%emt 0:00:02]} g4 {[%emt 0:00:03]} 51. Rf6 {[%emt 0:00:03]} Kg2 {[%emt 0:00:05]} 52. a5 {[%emt 0:00:03]} g3 {[%emt 0:00:06]} 53. axb6 {[%emt 0:00:03]} f2 {[%emt 0:00:04]} 54. b7 {[%emt 0:00:03]} Bxb7 {[%emt 0:00:03]} 55. Ke2 {[%emt 0:00:04]} Kh3 {[%emt 0:00:05]} 0-1

[Event "Queens Festival Europe 2022"]
[Site "Tornelo"]
[Date "2022.06.19"]
[Round "7.1"]
[White "Okuyaz, Duru"]
[Black "Ibrahimova, Sabina"]
[Result "1-0"]
[ECO "B38"]
[WhiteElo "2090"]
[BlackElo "2146"]
[Annotator "NA RC"]
[PlyCount "53"]
[EventDate "2022.06.19"]
[EventType "swiss"]
[EventCountry "NET"]
[SourceTitle "playchess.com"]
[Source "ChessBase"]
[SourceQuality "1"]
[TimeControl "180+2"]

1. e4 {[%emt 0:00:02]} c5 {[%emt 0:00:06]} 2. Nf3 {[%emt 0:00:02]} Nc6 {[%emt 0:00:02]} 3. d4 {[%emt 0:00:02]} cxd4 {[%emt 0:00:02]} 4. Nxd4 {[%emt 0:00:01]} g6 {[%emt 0:00:01]} 5. c4 {[%emt 0:00:02]} Bg7 {[%emt 0:00:03]} 6. Be3 {[%emt 0:00:01]} Nf6 {[%emt 0:00:02]} 7. Nc3 {[%emt 0:00:01]} O-O {[%emt 0:00:02]} 8. Be2 {[%emt 0:00:01]} d6 {[%emt 0:00:02]} 9. O-O {[%emt 0:00:02]} Bd7 {[%emt 0:00:01]} 10. Qd2 {[%emt 0:00:06]} Nxd4 {[%emt 0:00:03]} 11. Bxd4 {[%emt 0:00:02]} Bc6 {[%emt 0:00:01]} 12. f3 {[%emt 0:00:01]} a5 {[%emt 0:00:03]} 13. Rab1 {[%emt 0:00:06]} Nd7 {[%emt 0:00:04]} 14. Bf2 {[%emt 0:00:04]} Nc5 {[%emt 0:00:08]} 15. b3 {[%emt 0:00:06]} e6 {[%emt 0:00:26]} 16. Rfd1 {[%emt 0:00:19]} Be5 {[%emt 0:00:03]} 17. a3 {[%emt 0:00:32]} Qf6 {[%emt 0:00:22]} 18. Na2 {[%emt 0:00:09]} Rfd8 {[%emt 0:00:30]} 19. b4 {[%emt 0:00:05]} axb4 {[%emt 0:00:08]} 20. axb4 {[%emt 0:00:01]} Na4 {[%emt 0:00:08]} 21. Be3 {[%emt 0:00:16]} Nc3 {[%emt 0:00:34]} 22. Nxc3 {[%emt 0:00:09]} Bxc3 {[%emt 0:00:03]} 23. Qc1 {[%emt 0:00:05]} Qg7 {[%emt 0:00:43]} 24. b5 {[%emt 0:00:20]} Be8 {[%emt 0:00:04]} 25. Bb6 {[%emt 0:00:07]} Rd7 {[%emt 0:00:05]} 26. Rd3 {[%emt 0:00:14]} Bf6 {[%emt 0:00:04]} 27. Qd1 {[%emt 0:00:05]} 1-0

[Event "Queens Festival Europe 2022"]
[Site "Tornelo"]
[Date "2022.06.19"]
[Round "7.1"]
[White "Vujcic, Milena"]
[Black "Bordin, Silvia"]
[Result "1-0"]
[ECO "C89"]
[WhiteElo "1987"]
[BlackElo "1991"]
[Annotator "NA RC"]
[PlyCount "67"]
[EventDate "2022.06.19"]
[EventType "swiss"]
[EventCountry "NET"]
[SourceTitle "playchess.com"]
[Source "ChessBase"]
[SourceQuality "1"]
[TimeControl "180+2"]

1. e4 {[%emt 0:00:02]} e5 {[%emt 0:00:04]} 2. Nf3 {[%emt 0:00:03]} Nc6 {[%emt 0:00:02]} 3. Bb5 {[%emt 0:00:01]} a6 {[%emt 0:00:02]} 4. Ba4 {[%emt 0:00:01]} Nf6 {[%emt 0:00:02]} 5. O-O {[%emt 0:00:02]} Be7 {[%emt 0:00:01]} 6. Re1 {[%emt 0:00:01]} b5 {[%emt 0:00:01]} 7. Bb3 {[%emt 0:00:01]} O-O {[%emt 0:00:01]} 8. c3 {[%emt 0:00:02]} d5 {[%emt 0:00:02]} 9. exd5 {[%emt 0:00:01]} Nxd5 {[%emt 0:00:00]} 10. Nxe5 {[%emt 0:00:01]} Nxe5 {[%emt 0:00:01]} 11. Rxe5 {[%emt 0:00:02]} c6 {[%emt 0:00:00]} 12. d4 {[%emt 0:00:02]} Bd6 {[%emt 0:00:02]} 13. Re1 {[%emt 0:00:02]} Qh4 {[%emt 0:00:01]} 14. g3 {[%emt 0:00:02]} Qh3 {[%emt 0:00:01]} 15. Be3 {[%emt 0:00:01]} Bg4 {[%emt 0:00:02]} 16. Qd3 {[%emt 0:00:02]} Rae8 {[%emt 0:00:05]} 17. Nd2 {[%emt 0:00:01]} f5 {[%emt 0:00:12]} 18. f4 {[%emt 0:00:28]} Kh8 {[%emt 0:00:17]} 19. Bxd5 {[%emt 0:00:06]} cxd5 {[%emt 0:00:02]} 20. Bf2 {[%emt 0:00:01]} Re4 {[%emt 0:00:14]} 21. Nxe4 {[%emt 0:00:07]} fxe4 {[%emt 0:00:04]} 22. Qf1 {[%emt 0:00:01]} Qh5 {[%emt 0:00:02]} 23. Re3 {[%emt 0:00:08]} Rf6 {[%emt 0:00:02]} 24. a4 {[%emt 0:00:05]} Rh6 {[%emt 0:00:04]} 25. h4 {[%emt 0:00:02]} Bf3 {[%emt 0:00:21]} 26. axb5 {[%emt 0:00:05]} Bxf4 {[%emt 0:00:04]} 27. Rxa6 {[%emt 0:00:18]} Rxa6 {[%emt 0:00:09]} 28. bxa6 {[%emt 0:00:02]} Qg4 {[%emt 0:00:10]} 29. Rxf3 {[%emt 0:00:05]} exf3 {[%emt 0:00:02]} 30. Qe1 {[%emt 0:00:16]} h6 {[%emt 0:00:10]} 31. a7 {[%emt 0:00:05]} Qh3 {[%emt 0:00:15]} 32. a8=Q+ {[%emt 0:00:05]} Kh7 {[%emt 0:00:01]} 33. Qb1+ {[%emt 0:00:02]} g6 {[%emt 0:00:06]} 34. Qf1 {[%emt 0:00:07]} 1-0

[Event "Queens Festival Europe 2022"]
[Site "Tornelo"]
[Date "2022.06.19"]
[Round "7.1"]
[White "Vicze, Zsofia"]
[Black "Subramanian, Anusha"]
[Result "1-0"]
[ECO "C10"]
[WhiteElo "1749"]
[BlackElo "1671"]
[Annotator "NA RC"]
[PlyCount "65"]
[EventDate "2022.06.19"]
[EventType "swiss"]
[EventCountry "NET"]
[SourceTitle "playchess.com"]
[Source "ChessBase"]
[SourceQuality "1"]
[TimeControl "180+2"]

1. e4 {[%emt 0:00:02]} e6 {[%emt 0:00:04]} 2. d4 {[%emt 0:00:02]} d5 {[%emt 0:00:00]} 3. Nc3 {[%emt 0:00:02]} dxe4 {[%emt 0:00:02]} 4. Nxe4 {[%emt 0:00:02]} Nd7 {[%emt 0:00:01]} 5. Nf3 {[%emt 0:00:02]} Ngf6 {[%emt 0:00:01]} 6. Bd3 {[%emt 0:00:03]} Nxe4 {[%emt 0:00:03]} 7. Bxe4 {[%emt 0:00:02]} Nf6 {[%emt 0:00:01]} 8. Bd3 {[%emt 0:00:01]} b6 {[%emt 0:00:12]} 9. c3 {[%emt 0:00:02]} Bb7 {[%emt 0:00:05]} 10. O-O {[%emt 0:00:01]} Bd6 {[%emt 0:00:06]} 11. Bg5 {[%emt 0:00:02]} Be7 {[%emt 0:00:05]} 12. Bc2 {[%emt 0:00:03]} c5 {[%emt 0:00:14]} 13. Re1 {[%emt 0:00:10]} Nd5 {[%emt 0:00:14]} 14. Bxe7 {[%emt 0:00:03]} Nxe7 {[%emt 0:00:09]} 15. Qd3 {[%emt 0:00:03]} Ng6 {[%emt 0:00:10]} 16. Ba4+ {[%emt 0:00:06]} Kf8 {[%emt 0:00:12]} 17. Rad1 {[%emt 0:00:03]} Nf4 {[%emt 0:00:22]} 18. Qe3 {[%emt 0:00:14]} Nd5 {[%emt 0:00:13]} 19. Qe2 {[%emt 0:00:04]} Qd6 {[%emt 0:00:11]} 20. Ne5 {[%emt 0:00:09]} Ke7 {[%emt 0:00:15]} 21. Qh5 {[%emt 0:00:06]} g6 {[%emt 0:00:13]} 22. Qf3 {[%emt 0:00:02]} f6 {[%emt 0:00:39]} 23. Ng4 {[%emt 0:00:05]} f5 {[%emt 0:00:03]} 24. Ne5 {[%emt 0:00:06]} Kf6 {[%emt 0:00:02]} 25. c4 {[%emt 0:00:10]} Rhd8 {[%emt 0:00:10]} 26. cxd5 {[%emt 0:00:03]} Bxd5 {[%emt 0:00:00]} 27. Qe3 {[%emt 0:00:10]} Kg7 {[%emt 0:00:03]} 28. dxc5 {[%emt 0:00:05]} bxc5 {[%emt 0:00:02]} 29. Nf3 {[%emt 0:00:06]} Rac8 {[%emt 0:00:03]} 30. Qc3+ {[%emt 0:00:12]} Kf7 {[%emt 0:00:04]} 31. Ng5+ {[%emt 0:00:03]} Kg8 {[%emt 0:00:01]} 32. Qh3 {[%emt 0:00:06]} Rc7 {[%emt 0:00:02]} 33. Nxe6 {[%emt 0:00:13]} 1-0

[Event "Queens Festival Europe 2022"]
[Site "Tornelo"]
[Date "2022.06.19"]
[Round "7.1"]
[White "Vujovic, Vera"]
[Black "Valiyeva, Asnad"]
[Result "1/2-1/2"]
[ECO "B17"]
[WhiteElo "1353"]
[BlackElo "1237"]
[Annotator "NA RC"]
[PlyCount "147"]
[EventDate "2022.06.19"]
[EventType "swiss"]
[EventCountry "NET"]
[SourceTitle "playchess.com"]
[Source "ChessBase"]
[SourceQuality "1"]
[TimeControl "180+2"]

1. e4 {[%emt 0:00:02]} c6 {[%emt 0:00:04]} 2. d4 {[%emt 0:00:02]} d5 {[%emt 0:00:01]} 3. Nc3 {[%emt 0:00:02]} dxe4 {[%emt 0:00:03]} 4. Nxe4 {[%emt 0:00:02]} Nd7 {[%emt 0:00:01]} 5. Nf3 {[%emt 0:00:03]} Ngf6 {[%emt 0:00:03]} 6. Nxf6+ {[%emt 0:00:02]} Nxf6 {[%emt 0:00:03]} 7. c3 {[%emt 0:00:01]} Bf5 {[%emt 0:00:01]} 8. Bd3 {[%emt 0:00:02]} Bg4 {[%emt 0:00:03]} 9. O-O {[%emt 0:00:04]} e6 {[%emt 0:00:02]} 10. Bg5 {[%emt 0:00:06]} Be7 {[%emt 0:00:02]} 11. Be2 {[%emt 0:00:01]} Bh5 {[%emt 0:00:02]} 12. Ne5 {[%emt 0:00:03]} Bxe2 {[%emt 0:00:03]} 13. Qxe2 {[%emt 0:00:01]} h6 {[%emt 0:00:02]} 14. Bxf6 {[%emt 0:00:07]} Bxf6 {[%emt 0:00:02]} 15. f4 {[%emt 0:00:03]} O-O {[%emt 0:00:02]} 16. Qg4 {[%emt 0:00:04]} Qc7 {[%emt 0:00:13]} 17. Kh1 {[%emt 0:00:07]} Rad8 {[%emt 0:00:06]} 18. Rae1 {[%emt 0:00:06]} c5 {[%emt 0:00:08]} 19. f5 {[%emt 0:00:19]} exf5 {[%emt 0:00:15]} 20. Rxf5 {[%emt 0:00:05]} Kh8 {[%emt 0:00:01]} 21. Nf3 {[%emt 0:00:34]} cxd4 {[%emt 0:00:05]} 22. cxd4 {[%emt 0:00:05]} Qb6 {[%emt 0:00:02]} 23. b3 {[%emt 0:00:07]} Bxd4 {[%emt 0:00:17]} 24. h3 {[%emt 0:00:22]} Bc3 {[%emt 0:00:05]} 25. Rf1 {[%emt 0:00:05]} Bf6 {[%emt 0:00:06]} 26. Nh2 {[%emt 0:00:08]} Rd4 {[%emt 0:00:05]} 27. Qh5 {[%emt 0:00:29]} Rh4 {[%emt 0:00:17]} 28. Qf3 {[%emt 0:00:03]} Rd4 {[%emt 0:00:05]} 29. Ng4 {[%emt 0:00:03]} Rd6 {[%emt 0:00:17]} 30. Nxf6 {[%emt 0:00:16]} Rxf6 {[%emt 0:00:02]} 31. Rxf6 {[%emt 0:00:01]} Qxf6 {[%emt 0:00:02]} 32. Qxf6 {[%emt 0:00:01]} gxf6 {[%emt 0:00:03]} 33. Rxf6 {[%emt 0:00:02]} Kg7 {[%emt 0:00:02]} 34. Rf4 {[%emt 0:00:02]} Rd8 {[%emt 0:00:02]} 35. Rc4 {[%emt 0:00:02]} Rd1+ {[%emt 0:00:04]} 36. Kh2 {[%emt 0:00:02]} Rd2 {[%emt 0:00:02]} 37. a4 {[%emt 0:00:02]} Rb2 {[%emt 0:00:03]} 38. b4 {[%emt 0:00:02]} b6 {[%emt 0:00:04]} 39. b5 {[%emt 0:00:03]} Ra2 {[%emt 0:00:05]} 40. Kg3 {[%emt 0:00:05]} Ra3+ {[%emt 0:00:02]} 41. Kf4 {[%emt 0:00:02]} Kg6 {[%emt 0:00:04]} 42. h4 {[%emt 0:00:05]} h5 {[%emt 0:00:04]} 43. g4 {[%emt 0:00:03]} hxg4 {[%emt 0:00:02]} 44. Kxg4 {[%emt 0:00:01]} f5+ {[%emt 0:00:02]} 45. Kf4 {[%emt 0:00:03]} Rh3 {[%emt 0:00:03]} 46. Ke5 {[%emt 0:00:04]} Re3+ {[%emt 0:00:05]} 47. Kd6 {[%emt 0:00:02]} Re4 {[%emt 0:00:03]} 48. Rc6 {[%emt 0:00:07]} Rxa4 {[%emt 0:00:04]} 49. Ke5+ {[%emt 0:00:02]} Kh5 {[%emt 0:00:02]} 50. Kxf5 {[%emt 0:00:03]} Kxh4 {[%emt 0:00:01]} 51. Rc7 {[%emt 0:00:06]} Ra5 {[%emt 0:00:06]} 52. Ke4 {[%emt 0:00:03]} Kg4 {[%emt 0:00:08]} 53. Kd4 {[%emt 0:00:02]} Ra4+ {[%emt 0:00:02]} 54. Kc3 {[%emt 0:00:01]} Kf5 {[%emt 0:00:07]} 55. Kb3 {[%emt 0:00:02]} Ra1 {[%emt 0:00:02]} 56. Kb2 {[%emt 0:00:02]} Ra5 {[%emt 0:00:05]} 57. Kc3 {[%emt 0:00:01]} Ra3+ {[%emt 0:00:10]} 58. Kb4 {[%emt 0:00:02]} Ra1 {[%emt 0:00:02]} 59. Re7 {[%emt 0:00:02]} Kf6 {[%emt 0:00:02]} 60. Rb7 {[%emt 0:00:04]} Rb1+ {[%emt 0:00:03]} 61. Kc4 {[%emt 0:00:03]} Ra1 {[%emt 0:00:02]} 62. Kb4 {[%emt 0:00:01]} Ke6 {[%emt 0:00:02]} 63. Rh7 {[%emt 0:00:02]} Kd5 {[%emt 0:00:07]} 64. Rh5+ {[%emt 0:00:02]} Kd6 {[%emt 0:00:02]} 65. Rh6+ {[%emt 0:00:01]} Ke5 {[%emt 0:00:03]} 66. Rh5+ {[%emt 0:00:01]} Kd4 {[%emt 0:00:02]} 67. Rh4+ {[%emt 0:00:02]} Ke3 {[%emt 0:00:06]} 68. Rh3+ {[%emt 0:00:01]} Ke4 {[%emt 0:00:02]} 69. Rh4+ {[%emt 0:00:02]} Kd5 {[%emt 0:00:01]} 70. Rh5+ {[%emt 0:00:01]} Ke4 {[%emt 0:00:03]} 71. Rh4+ {[%emt 0:00:01]} Kf5 {[%emt 0:00:02]} 72. Rh5+ {[%emt 0:00:03]} Ke6 {[%emt 0:00:02]} 73. Rh6+ {[%emt 0:00:01]} Kd5 {[%emt 0:00:02]} 74. Rh5+ {[%emt 0:00:01]} 1/2-1/2